[Event "Titled Tuesday Blitz November 01 Early 2022"]
[White "Kovalenko, Igor"]
[Black "Borisova, Ekaterina"]
[WhiteFideId "14117908"]
[BlackFideId "34124184"]
[WhiteElo "2574"]
[BlackElo "2134"]
[Result "1-0"]
[Round "01"]
[TimeControl "180+1"]
[Date "2022.11.01"]
[WhiteClock "0:01:17"]
[BlackClock "0:00:03"]

1. c4 {[%clk 0:02:43]}  e6 {[%clk 0:02:58]} 2. Nc3 {[%clk 0:02:43]}  Nf6 {[%clk 0:02:58]} 3. e4 {[%clk 0:02:43]}  d5 {[%clk 0:02:59]} 4. cxd5 {[%clk 0:02:44]}  exd5 {[%clk 0:02:59]} 5. e5 {[%clk 0:02:45]}  Ne4 {[%clk 0:02:59]} 6. Nf3 {[%clk 0:02:45]}  Bf5 {[%clk 0:02:58]} 7. Be2 {[%clk 0:02:44]}  d4 {[%clk 0:02:40]} 8. Nxe4 {[%clk 0:02:40]}  Bxe4 {[%clk 0:02:40]} 9. Bc4 {[%clk 0:02:28]}  Bd5 {[%clk 0:02:19]} 10. Qb3 {[%clk 0:02:26]}  Bxc4 {[%clk 0:02:17]} 11. Qxc4 {[%clk 0:02:26]}  Nc6 {[%clk 0:02:15]} 12. d3 {[%clk 0:02:25]}  Be7 {[%clk 0:02:14]} 13. O-O {[%clk 0:02:25]}  Qd7 {[%clk 0:02:07]} 14. a3 {[%clk 0:02:23]}  O-O {[%clk 0:02:00]} 15. Re1 {[%clk 0:02:20]}  Rad8 {[%clk 0:01:48]} 16. Re4 {[%clk 0:02:15]}  Qd5 {[%clk 0:01:43]} 17. Qc2 {[%clk 0:02:14]}  Rfe8 {[%clk 0:01:38]} 18. Bf4 {[%clk 0:02:13]}  Bc5 {[%clk 0:01:31]} 19. Rae1 {[%clk 0:02:13]}  h6 {[%clk 0:01:25]} 20. e6 {[%clk 0:02:05]}  Rxe6 {[%clk 0:01:24]} 21. Rxe6 {[%clk 0:02:04]}  fxe6 {[%clk 0:01:25]} 22. Bxc7 {[%clk 0:02:05]}  Rf8 {[%clk 0:01:01]} 23. Bg3 {[%clk 0:02:05]}  Kh7 {[%clk 0:00:40]} 24. Nd2 {[%clk 0:02:04]}  e5 {[%clk 0:00:35]} 25. Ne4 {[%clk 0:02:03]}  Be7 {[%clk 0:00:35]} 26. Rc1 {[%clk 0:01:52]}  a6 {[%clk 0:00:27]} 27. Qe2 {[%clk 0:01:50]}  Qd7 {[%clk 0:00:10]} 28. h3 {[%clk 0:01:49]}  Qf5 {[%clk 0:00:10]} 29. Rc2 {[%clk 0:01:47]}  Qe6 {[%clk 0:00:09]} 30. Nd2 {[%clk 0:01:46]}  Qa2 {[%clk 0:00:08]} 31. Qd1 {[%clk 0:01:39]}  Qf7 {[%clk 0:00:06]} 32. Nc4 {[%clk 0:01:38]}  Bf6 {[%clk 0:00:06]} 33. Re2 {[%clk 0:01:37]}  Qd5 {[%clk 0:00:05]} 34. Qe1 {[%clk 0:01:35]}  Re8 {[%clk 0:00:05]} 35. Re4 {[%clk 0:01:35]}  Kh8 {[%clk 0:00:05]} 36. f4 {[%clk 0:01:31]}  b5 {[%clk 0:00:05]} 37. Nxe5 {[%clk 0:01:31]}  Nxe5 {[%clk 0:00:03]} 38. fxe5 {[%clk 0:01:31]}  Bg5 {[%clk 0:00:04]} 39. Bf2 {[%clk 0:01:31]}  Qc5 {[%clk 0:00:01]} 40. Bxd4 {[%clk 0:01:29]}  Qd5 {[%clk 0:00:02]} 41. Qe2 {[%clk 0:01:29]}  Rd8 {[%clk 0:00:02]} 42. e6 {[%clk 0:01:29]}  Be7 {[%clk 0:00:02]} 43. Kh1 {[%clk 0:01:28]}  Qb3 {[%clk 0:00:02]} 44. Bc3 {[%clk 0:01:28]}  Qd5 {[%clk 0:00:01]} 45. d4 {[%clk 0:01:28]}  Qf5 {[%clk 0:00:02]} 46. Re5 {[%clk 0:01:27]}  Qb1+ {[%clk 0:00:02]} 47. Qe1 {[%clk 0:01:27]}  Qc2 {[%clk 0:00:03]} 48. d5 {[%clk 0:01:26]}  a5 {[%clk 0:00:03]} 49. Rh5 {[%clk 0:01:23]}  Rf8 {[%clk 0:00:03]} 50. Rxh6+ {[%clk 0:01:22]}  Kg8 {[%clk 0:00:03]} 51. Qg3 {[%clk 0:01:17]}  Rf1+ {[%clk 0:00:03]} 52. Kh2 {[%clk 0:01:17]} 1-0


[Site "https://www.chess.com"]

[Event "Titled Tuesday Blitz November 01 Early 2022"]
[White "Laohawirapap, Prin"]
[Black "Srebrnic, Marko"]
[WhiteFideId "6205003"]
[BlackFideId "14603616"]
[WhiteElo "2113"]
[BlackElo "2340"]
[Result "0-1"]
[Round "01"]
[TimeControl "180+1"]
[Date "2022.11.02"]
[WhiteClock "0:00:20"]
[BlackClock "0:00:03"]

1. d4 {[%clk 0:03:00]}  Nf6 {[%clk 0:02:58]} 2. Bf4 {[%clk 0:03:00]}  d6 {[%clk 0:02:58]} 3. Nc3 {[%clk 0:02:59]}  Nbd7 {[%clk 0:02:57]} 4. e4 {[%clk 0:02:59]}  g6 {[%clk 0:02:51]} 5. Qd2 {[%clk 0:02:56]}  Bg7 {[%clk 0:02:41]} 6. O-O-O {[%clk 0:02:54]}  O-O {[%clk 0:02:41]} 7. Bh6 {[%clk 0:02:54]}  c5 {[%clk 0:02:39]} 8. dxc5 {[%clk 0:02:50]}  Nxc5 {[%clk 0:02:37]} 9. f3 {[%clk 0:02:50]}  Be6 {[%clk 0:02:29]} 10. h4 {[%clk 0:02:46]}  Qa5 {[%clk 0:02:09]} 11. a3 {[%clk 0:02:45]}  Na4 {[%clk 0:02:04]} 12. Nxa4 {[%clk 0:02:44]}  Qxa4 {[%clk 0:02:05]} 13. h5 {[%clk 0:02:40]}  Bxh6 {[%clk 0:02:03]} 14. Qxh6 {[%clk 0:02:36]}  Rac8 {[%clk 0:02:03]} 15. Bd3 {[%clk 0:02:26]}  Rc5 {[%clk 0:01:56]} 16. hxg6 {[%clk 0:02:22]}  fxg6 {[%clk 0:01:56]} 17. Ne2 {[%clk 0:02:16]}  Rfc8 {[%clk 0:01:52]} 18. c3 {[%clk 0:02:13]}  Bc4 {[%clk 0:01:41]} 19. Bxc4+ {[%clk 0:02:07]}  Rxc4 {[%clk 0:01:42]} 20. g4 {[%clk 0:01:57]}  Qb3 {[%clk 0:00:45]} 21. Rd2 {[%clk 0:01:38]}  g5 {[%clk 0:00:31]} 22. Qxg5+ {[%clk 0:01:34]}  Kf8 {[%clk 0:00:31]} 23. Rh6 {[%clk 0:01:29]}  Ke8 {[%clk 0:00:13]} 24. Rd3 {[%clk 0:01:18]}  R4c5 {[%clk 0:00:10]} 25. Qg7 {[%clk 0:01:15]}  Qf7 {[%clk 0:00:07]} 26. Qxf7+ {[%clk 0:01:12]}  Kxf7 {[%clk 0:00:08]} 27. g5 {[%clk 0:01:13]}  Kg7 {[%clk 0:00:07]} 28. f4 {[%clk 0:01:08]}  Nxe4 {[%clk 0:00:07]} 29. Rdh3 {[%clk 0:01:08]}  Kf7 {[%clk 0:00:04]} 30. Rxh7+ {[%clk 0:01:07]}  Ke6 {[%clk 0:00:04]} 31. Nd4+ {[%clk 0:01:07]}  Kd5 {[%clk 0:00:05]} 32. Rxe7 {[%clk 0:01:05]}  Nf2 {[%clk 0:00:03]} 33. Rh5 {[%clk 0:01:04]}  Kc4 {[%clk 0:00:03]} 34. Kc2 {[%clk 0:01:01]}  Rd5 {[%clk 0:00:02]} 35. b3+ {[%clk 0:00:52]}  Kc5 {[%clk 0:00:02]} 36. Rxb7 {[%clk 0:00:53]}  Rxd4 {[%clk 0:00:02]} 37. cxd4+ {[%clk 0:00:54]}  Kxd4+ {[%clk 0:00:03]} 38. Kd2 {[%clk 0:00:54]}  Ne4+ {[%clk 0:00:02]} 39. Ke2 {[%clk 0:00:54]}  Rc2+ {[%clk 0:00:03]} 40. Kf3 {[%clk 0:00:55]}  d5 {[%clk 0:00:02]} 41. Rb4+ {[%clk 0:00:52]}  Kd3 {[%clk 0:00:02]} 42. g6 {[%clk 0:00:50]}  Rf2+ {[%clk 0:00:02]} 43. Kg4 {[%clk 0:00:50]}  Rg2+ {[%clk 0:00:02]} 44. Kh3 {[%clk 0:00:50]}  Rg3+ {[%clk 0:00:02]} 45. Kh2 {[%clk 0:00:50]}  Rxg6 {[%clk 0:00:02]} 46. Rxd5+ {[%clk 0:00:50]}  Ke3 {[%clk 0:00:02]} 47. Re5 {[%clk 0:00:50]}  Kf2 {[%clk 0:00:02]} 48. Rh5 {[%clk 0:00:42]}  Nd2 {[%clk 0:00:02]} 49. Rh3 {[%clk 0:00:21]}  Nf1+ {[%clk 0:00:02]} 50. Kh1 {[%clk 0:00:20]}  Rg1# {[%clk 0:00:03]} 0-1


[Site "https://www.chess.com"]

[Event "Titled Tuesday Blitz November 01 Early 2022"]
[White "Leve, Nitai"]
[Black "Goroshkov, Maksym"]
[WhiteFideId "2006898"]
[BlackFideId "14142716"]
[WhiteElo "2144"]
[BlackElo "2257"]
[Result "0-1"]
[Round "01"]
[TimeControl "180+1"]
[Date "2022.11.02"]
[WhiteClock "0:00:06"]
[BlackClock "0:00:58"]

1. e4 {[%clk 0:02:55]}  e5 {[%clk 0:03:00]} 2. Nf3 {[%clk 0:02:52]}  d6 {[%clk 0:03:00]} 3. d4 {[%clk 0:02:52]}  Bg4 {[%clk 0:03:00]} 4. dxe5 {[%clk 0:02:52]}  Nd7 {[%clk 0:03:01]} 5. Bc4 {[%clk 0:02:50]}  Bxf3 {[%clk 0:03:00]} 6. Qxf3 {[%clk 0:02:47]}  Nxe5 {[%clk 0:03:01]} 7. Qb3 {[%clk 0:02:46]}  Nxc4 {[%clk 0:03:01]} 8. Qxc4 {[%clk 0:02:47]}  Nf6 {[%clk 0:02:59]} 9. O-O {[%clk 0:02:47]}  Be7 {[%clk 0:02:59]} 10. Nc3 {[%clk 0:02:47]}  O-O {[%clk 0:02:59]} 11. Bf4 {[%clk 0:02:46]}  Qd7 {[%clk 0:02:59]} 12. Rad1 {[%clk 0:02:44]}  Qe6 {[%clk 0:02:58]} 13. Qb4 {[%clk 0:02:31]}  b6 {[%clk 0:02:49]} 14. Rfe1 {[%clk 0:02:24]}  Rfe8 {[%clk 0:02:27]} 15. Qa4 {[%clk 0:02:15]}  Qg4 {[%clk 0:02:22]} 16. Bg3 {[%clk 0:02:08]}  Nh5 {[%clk 0:02:14]} 17. Nd5 {[%clk 0:01:54]}  Nxg3 {[%clk 0:02:12]} 18. hxg3 {[%clk 0:01:55]}  Qc8 {[%clk 0:02:02]} 19. Qc6 {[%clk 0:01:50]}  Rb8 {[%clk 0:01:55]} 20. Rd3 {[%clk 0:01:23]}  Kf8 {[%clk 0:01:41]} 21. Rc3 {[%clk 0:01:09]}  Bd8 {[%clk 0:01:41]} 22. Nxc7 {[%clk 0:01:00]}  Bxc7 {[%clk 0:01:41]} 23. Qxc7 {[%clk 0:01:01]}  Qxc7 {[%clk 0:01:41]} 24. Rxc7 {[%clk 0:01:02]}  Rbc8 {[%clk 0:01:39]} 25. Rxc8 {[%clk 0:00:47]}  Rxc8 {[%clk 0:01:40]} 26. Re2 {[%clk 0:00:43]}  Ke7 {[%clk 0:01:39]} 27. f4 {[%clk 0:00:42]}  Ke6 {[%clk 0:01:38]} 28. Kf2 {[%clk 0:00:42]}  Rc4 {[%clk 0:01:36]} 29. Ke3 {[%clk 0:00:39]}  g6 {[%clk 0:01:30]} 30. b3 {[%clk 0:00:39]}  Rc3+ {[%clk 0:01:29]} 31. Kf2 {[%clk 0:00:34]}  h5 {[%clk 0:01:29]} 32. a4 {[%clk 0:00:31]}  a5 {[%clk 0:01:24]} 33. Rd2 {[%clk 0:00:30]}  Rc5 {[%clk 0:01:20]} 34. Ke3 {[%clk 0:00:26]}  Rc3+ {[%clk 0:01:20]} 35. Kf2 {[%clk 0:00:27]}  f6 {[%clk 0:01:16]} 36. Re2 {[%clk 0:00:27]}  d5 {[%clk 0:01:16]} 37. exd5+ {[%clk 0:00:24]}  Kxd5 {[%clk 0:01:17]} 38. Rd2+ {[%clk 0:00:24]}  Kc5 {[%clk 0:01:17]} 39. Re2 {[%clk 0:00:20]}  f5 {[%clk 0:01:17]} 40. Rd2 {[%clk 0:00:16]}  Kc6 {[%clk 0:01:11]} 41. Ke1 {[%clk 0:00:12]}  Rxg3 {[%clk 0:01:10]} 42. Rf2 {[%clk 0:00:12]}  Kd5 {[%clk 0:01:09]} 43. Kd1 {[%clk 0:00:12]}  Ke4 {[%clk 0:01:09]} 44. Kc1 {[%clk 0:00:11]}  Rg4 {[%clk 0:01:04]} 45. Re2+ {[%clk 0:00:11]}  Kxf4 {[%clk 0:01:05]} 46. Re6 {[%clk 0:00:12]}  Rxg2 {[%clk 0:01:05]} 47. Rxb6 {[%clk 0:00:12]}  h4 {[%clk 0:01:05]} 48. Rb8 {[%clk 0:00:12]}  h3 {[%clk 0:01:05]} 49. Rh8 {[%clk 0:00:13]}  h2 {[%clk 0:01:06]} 50. Kb2 {[%clk 0:00:12]}  g5 {[%clk 0:01:06]} 51. b4 {[%clk 0:00:12]}  axb4 {[%clk 0:01:07]} 52. a5 {[%clk 0:00:11]}  b3 {[%clk 0:01:02]} 53. a6 {[%clk 0:00:09]}  Rxc2+ {[%clk 0:01:02]} 54. Kxb3 {[%clk 0:00:09]}  Rc6 {[%clk 0:00:58]} 55. Rxh2 {[%clk 0:00:05]}  Rxa6 {[%clk 0:00:58]} 56. Kc3 {[%clk 0:00:06]} 0-1


[Site "https://www.chess.com"]

[Event "Titled Tuesday Blitz November 01 Early 2022"]
[White "Lohani, Sujana"]
[Black "Nurmanova, Alua"]
[WhiteFideId "12311987"]
[BlackFideId "13729390"]
[WhiteElo "1691"]
[BlackElo "2088"]
[Result "0-1"]
[Round "01"]
[TimeControl "180+1"]
[Date "2022.11.02"]
[WhiteClock "0:00:04"]
[BlackClock "0:01:07"]

1. d4 {[%clk 0:02:53]}  Nf6 {[%clk 0:02:59]} 2. Nf3 {[%clk 0:02:54]}  g6 {[%clk 0:02:59]} 3. c4 {[%clk 0:02:53]}  Bg7 {[%clk 0:02:59]} 4. Nc3 {[%clk 0:02:53]}  O-O {[%clk 0:02:59]} 5. g3 {[%clk 0:02:49]}  d6 {[%clk 0:02:56]} 6. Bg2 {[%clk 0:02:49]}  Nbd7 {[%clk 0:02:55]} 7. O-O {[%clk 0:02:50]}  e5 {[%clk 0:02:55]} 8. d5 {[%clk 0:02:41]}  a5 {[%clk 0:02:47]} 9. e4 {[%clk 0:02:36]}  Nc5 {[%clk 0:02:46]} 10. Qe2 {[%clk 0:02:31]}  c6 {[%clk 0:02:44]} 11. h3 {[%clk 0:02:29]}  cxd5 {[%clk 0:02:43]} 12. cxd5 {[%clk 0:02:28]}  b5 {[%clk 0:02:40]} 13. Nxb5 {[%clk 0:02:14]}  Ba6 {[%clk 0:02:34]} 14. a4 {[%clk 0:02:12]}  Nfxe4 {[%clk 0:02:28]} 15. Nd2 {[%clk 0:01:56]}  Nxd2 {[%clk 0:02:24]} 16. Bxd2 {[%clk 0:01:53]}  Rb8 {[%clk 0:02:22]} 17. Rfb1 {[%clk 0:01:36]}  Nxa4 {[%clk 0:02:17]} 18. Qd1 {[%clk 0:00:40]}  Bxb5 {[%clk 0:02:02]} 19. Rxa4 {[%clk 0:00:39]}  Bxa4 {[%clk 0:02:02]} 20. Qxa4 {[%clk 0:00:40]}  Qb6 {[%clk 0:01:54]} 21. Bxa5 {[%clk 0:00:24]}  Qa6 {[%clk 0:01:40]} 22. b4 {[%clk 0:00:24]}  Qd3 {[%clk 0:01:37]} 23. Ra1 {[%clk 0:00:19]}  e4 {[%clk 0:01:32]} 24. Ra3 {[%clk 0:00:19]}  Qb1+ {[%clk 0:01:30]} 25. Kh2 {[%clk 0:00:17]}  Rfc8 {[%clk 0:01:18]} 26. Qd7 {[%clk 0:00:15]}  Bd4 {[%clk 0:01:09]} 27. Qxd6 {[%clk 0:00:04]}  Bxf2 {[%clk 0:01:07]} 28. Bc7 {[%clk 0:00:04]}  Qg1# {[%clk 0:01:07]} 0-1


[Site "https://www.chess.com"]

[Event "Titled Tuesday Blitz November 01 Early 2022"]
[White "Luxama, Jacques Muller"]
[Black "Arabidze, Meri"]
[WhiteFideId "11900113"]
[BlackFideId "13604040"]
[WhiteElo "1931"]
[BlackElo "2403"]
[Result "0-1"]
[Round "01"]
[TimeControl "180+1"]
[Date "2022.11.02"]
[WhiteClock "0:01:15"]
[BlackClock "0:00:59"]

1. d4 {[%clk 0:02:59]}  d5 {[%clk 0:02:58]} 2. c4 {[%clk 0:02:59]}  c6 {[%clk 0:02:59]} 3. Nc3 {[%clk 0:02:59]}  Nf6 {[%clk 0:02:59]} 4. cxd5 {[%clk 0:02:59]}  cxd5 {[%clk 0:02:59]} 5. Nf3 {[%clk 0:03:00]}  Nc6 {[%clk 0:02:59]} 6. Bf4 {[%clk 0:03:00]}  a6 {[%clk 0:02:58]} 7. e3 {[%clk 0:03:00]}  Bg4 {[%clk 0:02:54]} 8. h3 {[%clk 0:02:58]}  Bh5 {[%clk 0:02:54]} 9. g4 {[%clk 0:02:57]}  Bg6 {[%clk 0:02:53]} 10. Ne5 {[%clk 0:02:54]}  e6 {[%clk 0:02:51]} 11. Bg2 {[%clk 0:02:52]}  Nxe5 {[%clk 0:02:44]} 12. dxe5 {[%clk 0:02:47]}  Nd7 {[%clk 0:02:44]} 13. e4 {[%clk 0:02:44]}  dxe4 {[%clk 0:02:30]} 14. Nxe4 {[%clk 0:02:44]}  Bb4+ {[%clk 0:02:29]} 15. Kf1 {[%clk 0:02:36]}  O-O {[%clk 0:02:29]} 16. Kg1 {[%clk 0:02:34]}  Rc8 {[%clk 0:02:06]} 17. Kh2 {[%clk 0:02:30]}  Rc4 {[%clk 0:02:05]} 18. Qe2 {[%clk 0:02:12]}  Nb6 {[%clk 0:02:04]} 19. Rhd1 {[%clk 0:02:09]}  Qc8 {[%clk 0:01:53]} 20. Rac1 {[%clk 0:02:05]}  h6 {[%clk 0:01:37]} 21. Bg3 {[%clk 0:01:55]}  Rxc1 {[%clk 0:01:35]} 22. Nd6 {[%clk 0:01:37]}  Bxd6 {[%clk 0:01:32]} 23. Rxd6 {[%clk 0:01:38]}  Rc2 {[%clk 0:01:28]} 24. Qd1 {[%clk 0:01:32]}  Nc4 {[%clk 0:01:18]} 25. Rd7 {[%clk 0:01:25]}  Nxb2 {[%clk 0:01:14]} 26. Qd4 {[%clk 0:01:24]}  b5 {[%clk 0:01:08]} 27. h4 {[%clk 0:01:22]}  h5 {[%clk 0:01:02]} 28. gxh5 {[%clk 0:01:19]}  Bxh5 {[%clk 0:01:02]} 29. Be4 {[%clk 0:01:15]}  Rc4 {[%clk 0:00:59]} 0-1


[Site "https://www.chess.com"]

[Event "Titled Tuesday Blitz November 01 Early 2022"]
[White "Madaminov, Mukhiddin"]
[Black "Rakhimgaliyev, Yerlan"]
[WhiteFideId "14210703"]
[BlackFideId "13705148"]
[WhiteElo "2341"]
[BlackElo "2261"]
[Result "1-0"]
[Round "01"]
[TimeControl "180+1"]
[Date "2022.11.02"]
[WhiteClock "0:01:02"]
[BlackClock "0:00:26"]

1. d4 {[%clk 0:03:00]}  Nf6 {[%clk 0:02:59]} 2. Nc3 {[%clk 0:03:01]}  g6 {[%clk 0:02:57]} 3. e4 {[%clk 0:03:01]}  d6 {[%clk 0:02:58]} 4. f4 {[%clk 0:02:59]}  Bg7 {[%clk 0:02:58]} 5. Bd3 {[%clk 0:02:59]}  O-O {[%clk 0:02:58]} 6. Nf3 {[%clk 0:02:59]}  Nbd7 {[%clk 0:02:57]} 7. e5 {[%clk 0:02:59]}  Ne8 {[%clk 0:02:56]} 8. O-O {[%clk 0:02:58]}  c5 {[%clk 0:02:57]} 9. Be3 {[%clk 0:02:25]}  cxd4 {[%clk 0:02:42]} 10. Bxd4 {[%clk 0:02:26]}  Nc5 {[%clk 0:02:43]} 11. Bxc5 {[%clk 0:02:19]}  dxc5 {[%clk 0:02:44]} 12. Bc4 {[%clk 0:02:19]}  Bf5 {[%clk 0:02:43]} 13. Qe2 {[%clk 0:02:17]}  Nc7 {[%clk 0:02:38]} 14. Rad1 {[%clk 0:02:15]}  Qc8 {[%clk 0:02:39]} 15. a4 {[%clk 0:02:06]}  Be6 {[%clk 0:01:53]} 16. Ne4 {[%clk 0:02:00]}  Bxc4 {[%clk 0:01:50]} 17. Qxc4 {[%clk 0:02:01]}  Ne6 {[%clk 0:01:50]} 18. Nfg5 {[%clk 0:01:51]}  Nxg5 {[%clk 0:01:27]} 19. Nxg5 {[%clk 0:01:48]}  h6 {[%clk 0:01:27]} 20. Ne4 {[%clk 0:01:44]}  b6 {[%clk 0:01:28]} 21. Nc3 {[%clk 0:01:29]}  Kh7 {[%clk 0:01:02]} 22. Rd2 {[%clk 0:01:14]}  f6 {[%clk 0:00:59]} 23. e6 {[%clk 0:01:08]}  f5 {[%clk 0:00:58]} 24. Rd7 {[%clk 0:01:06]}  Bd4+ {[%clk 0:00:32]} 25. Kh1 {[%clk 0:01:05]}  Bxc3 {[%clk 0:00:29]} 26. Qxc3 {[%clk 0:01:04]}  Re8 {[%clk 0:00:29]} 27. Qf6 {[%clk 0:01:03]}  Qxd7 {[%clk 0:00:26]} 28. Qf7+ {[%clk 0:01:02]} 1-0


[Site "https://www.chess.com"]

[Event "Titled Tuesday Blitz November 01 Early 2022"]
[White "Maghsoodloo, Parham"]
[Black "Ristic, Nebojsa B"]
[WhiteFideId "12539929"]
[BlackFideId "935468"]
[WhiteElo "2676"]
[BlackElo "2320"]
[Result "1-0"]
[Round "01"]
[TimeControl "180+1"]
[Date "2022.11.01"]
[WhiteClock "0:00:28"]
[BlackClock "0:00:21"]

1. d4 {[%clk 0:02:57]}  Nf6 {[%clk 0:02:57]} 2. Nf3 {[%clk 0:02:57]}  e6 {[%clk 0:02:55]} 3. Bf4 {[%clk 0:02:56]}  b6 {[%clk 0:02:48]} 4. Nbd2 {[%clk 0:02:56]}  Bb7 {[%clk 0:02:47]} 5. h3 {[%clk 0:02:55]}  g6 {[%clk 0:02:42]} 6. c4 {[%clk 0:02:54]}  Bg7 {[%clk 0:02:42]} 7. Qc2 {[%clk 0:02:54]}  O-O {[%clk 0:02:39]} 8. e4 {[%clk 0:02:54]}  d6 {[%clk 0:02:40]} 9. Be2 {[%clk 0:02:52]}  Nbd7 {[%clk 0:02:40]} 10. O-O {[%clk 0:02:50]}  Qe7 {[%clk 0:02:39]} 11. e5 {[%clk 0:02:47]}  dxe5 {[%clk 0:02:39]} 12. Nxe5 {[%clk 0:02:47]}  Nxe5 {[%clk 0:02:37]} 13. Bxe5 {[%clk 0:02:46]}  c5 {[%clk 0:02:30]} 14. Bf3 {[%clk 0:02:45]}  Bxf3 {[%clk 0:02:29]} 15. Nxf3 {[%clk 0:02:46]}  Rac8 {[%clk 0:02:29]} 16. Rfe1 {[%clk 0:02:41]}  cxd4 {[%clk 0:02:22]} 17. Nxd4 {[%clk 0:02:42]}  Nd7 {[%clk 0:02:19]} 18. Bxg7 {[%clk 0:02:41]}  Kxg7 {[%clk 0:02:20]} 19. b3 {[%clk 0:02:40]}  Qf6 {[%clk 0:02:17]} 20. Nb5 {[%clk 0:02:40]}  a6 {[%clk 0:02:15]} 21. Nd6 {[%clk 0:02:37]}  Rc6 {[%clk 0:02:15]} 22. Ne4 {[%clk 0:02:36]}  Qe5 {[%clk 0:02:09]} 23. Rad1 {[%clk 0:02:35]}  Nf6 {[%clk 0:02:08]} 24. Nd2 {[%clk 0:02:02]}  Qf5 {[%clk 0:02:07]} 25. Qb2 {[%clk 0:02:01]}  h5 {[%clk 0:02:03]} 26. Ne4 {[%clk 0:01:57]}  Re8 {[%clk 0:01:56]} 27. Rd3 {[%clk 0:01:55]}  e5 {[%clk 0:01:44]} 28. Rf3 {[%clk 0:01:54]}  Qd7 {[%clk 0:01:32]} 29. Nxf6 {[%clk 0:01:53]}  Rxf6 {[%clk 0:01:33]} 30. Rxf6 {[%clk 0:01:53]}  Kxf6 {[%clk 0:01:32]} 31. f4 {[%clk 0:01:54]}  Qc7 {[%clk 0:01:18]} 32. b4 {[%clk 0:01:42]}  g5 {[%clk 0:01:01]} 33. fxe5+ {[%clk 0:01:36]}  Rxe5 {[%clk 0:00:59]} 34. Qd4 {[%clk 0:01:28]}  Kf5 {[%clk 0:00:46]} 35. Qd3+ {[%clk 0:00:56]}  Kf6 {[%clk 0:00:42]} 36. Qc3 {[%clk 0:00:56]}  Kf5 {[%clk 0:00:41]} 37. Qc2+ {[%clk 0:00:50]}  Kf6 {[%clk 0:00:40]} 38. Qf2+ {[%clk 0:00:50]}  Kg7 {[%clk 0:00:36]} 39. Qd4 {[%clk 0:00:48]}  f6 {[%clk 0:00:35]} 40. Rxe5 {[%clk 0:00:48]}  fxe5 {[%clk 0:00:36]} 41. Qd5 {[%clk 0:00:48]}  Kf6 {[%clk 0:00:33]} 42. c5 {[%clk 0:00:47]}  bxc5 {[%clk 0:00:34]} 43. bxc5 {[%clk 0:00:47]}  h4 {[%clk 0:00:32]} 44. c6 {[%clk 0:00:42]}  e4 {[%clk 0:00:32]} 45. Qxe4 {[%clk 0:00:42]}  Qb6+ {[%clk 0:00:33]} 46. Kh1 {[%clk 0:00:40]}  Qc5 {[%clk 0:00:33]} 47. Qf3+ {[%clk 0:00:35]}  Ke6 {[%clk 0:00:33]} 48. Qe2+ {[%clk 0:00:34]}  Kd6 {[%clk 0:00:33]} 49. Qxa6 {[%clk 0:00:33]}  Qc1+ {[%clk 0:00:31]} 50. Kh2 {[%clk 0:00:32]}  Qf4+ {[%clk 0:00:32]} 51. Kg1 {[%clk 0:00:33]}  Qe3+ {[%clk 0:00:25]} 52. Kf1 {[%clk 0:00:33]}  Qc1+ {[%clk 0:00:22]} 53. Ke2 {[%clk 0:00:32]}  Qc2+ {[%clk 0:00:21]} 54. Ke3 {[%clk 0:00:29]}  Qc3+ {[%clk 0:00:20]} 55. Qd3+ {[%clk 0:00:28]}  Qxd3+ {[%clk 0:00:21]} 56. Kxd3 {[%clk 0:00:27]}  Kxc6 {[%clk 0:00:21]} 57. Ke4 {[%clk 0:00:28]} 1-0


[Site "https://www.chess.com"]